fUST/lending_fUST_20241230
["ID","MTS","AMOUNT","RATE_DAILY","PERIOD"]
[347204246,1735571443574,-500.0,0.00013699,2]
[347204248,1735571443583,-500.0,0.00013699,2]
[347204250,1735571443592,-500.0,0.00013699,2]
[347204251,1735571443601,-247.90379364,0.00013699,2]
[347204253,1735571443611,-500.0,0.00013699,2]
[347204255,1735571443623,-500.0,0.00013699,2]
[347204257,1735571443635,-500.0,0.0001376,2]
[347204259,1735571443644,-500.0,0.0001376,2]
[347204260,1735571443654,-2882.28,0.00013761,2]
[347204261,1735571443664,-500.0,0.00013761,2]
[347204262,1735571443674,-500.0,0.00013761,2]
[347204264,1735571443684,-500.0,0.00013761,2]
[347204266,1735571443694,-151.0,0.000138,2]
[347204268,1735571443705,-153.0,0.00013836,2]
[347204270,1735571443715,-252.6929589,0.00013859,2]
[347204272,1735571443725,-774.26,0.0001388,2]
[347204274,1735571443735,-10579.55317666,0.00013887,2]
[347204276,1735571443745,-500.0,0.00013899,2]
[347204277,1735571443755,-500.0,0.00013899,2]
[347204279,1735571443765,-3031.98742255,0.000139,2]
[347204281,1735571443775,-174.16981733,0.000139,2]
[347204283,1735571443785,-152.0,0.00013969,2]
[347204285,1735571443794,-500.0,0.00013973,2]
[347204286,1735571443804,-500.0,0.00013973,2]
[347204288,1735571443813,-500.0,0.00013973,2]
[347204290,1735571443824,-500.0,0.00013973,2]
[347204292,1735571443834,-500.65682149,0.00013973,2]
[347204294,1735571443843,-500.0,0.00013973,2]
[347204295,1735571443853,-400.0,0.00013973,2]
[347204297,1735571443863,-199.75433747,0.00013999,2]
[347204299,1735571443875,-632.057,0.00013999,2]
[347204301,1735571443884,-500.0,0.00013999,2]
[347204302,1735571443894,-500.0,0.00013999,2]
[347204303,1735571443903,-500.0,0.00013999,2]
[347204304,1735571443913,-331.63,0.00013999,2]
[347204305,1735571443922,-4623.43342985,0.00014,2]
[347204306,1735571443932,-31056.13981695,0.00014,2]
[347204307,1735571443941,-185491.46706953,0.00014,2]
[347204309,1735571444035,-309.7139885,0.00014,2]
[347204310,1735571444111,-466.72833866,0.00013761,2]
[347204311,1735571444126,-258.4405,0.00013761,2]
[347204312,1735571444185,-500.0,0.00011296,2]
[347204313,1735571444194,-576.68116134,0.00013761,2]
[347204314,1735571444204,-500.0,0.00013999,2]
[347204315,1735571444214,-16918.51883866,0.00014,2]
[347204316,1735571444229,-9202.89925,0.00014,2]
[347204317,1735571444241,-538.76085695,0.00014,2]
[347204318,1735571444252,-4024.35375145,0.00014,2]
[347204319,1735571444271,-500.0,0.0001157,2]
[347204320,1735571444280,-7779.48030242,0.00014,2]
[347204321,1735571444292,-192650.21215003,0.00014,2]
[347204322,1735571444408,-500.0,0.00011294,2]
[347204323,1735571444419,-623.13,0.00011568,2]
[347204324,1735571444429,-500.0,0.00011844,2]
[347204325,1735571444438,-359.27331547,0.00013973,2]
[347204326,1735571444449,-32813.82352975,0.00014,2]
[347204327,1735571444460,-256855.41998257,0.00014,2]
[347204358,1735571447225,-500.0,0.00011294,2]
[347204359,1735571447235,-500.0,0.00011295,2]
[347204360,1735571447244,-500.0,0.00011568,2]
[347204361,1735571447253,-500.0,0.00011842,2]
[347204362,1735571447263,-500.0,0.00012116,2]
[347204363,1735571447272,-500.0,0.0001239,2]
[347204364,1735571447281,-500.0,0.00012664,2]
[347204365,1735571447291,-551.85243434,0.00012938,2]
[347204366,1735571447300,-13948.11683022,0.00014,2]
[347204367,1735571447311,-27566.40000001,0.00014,2]
[347204368,1735571447322,-2760.2,0.00014,2]
[347204381,1735572169689,6108.15332331,0.00025,120]
[347204411,1735572522351,499.03749196,0.00021299,120]
[347204413,1735572530519,-369.15774874,0.000101,2]
[347204415,1735572530545,-625.26912913,0.00010414,2]
[347204416,1735572530571,-300.0,0.00010506,2]
[347204418,1735572530600,-500.0,0.00010507,2]
[347204419,1735572530636,-59.07934141,0.00010507,2]
[347204421,1735572530669,-440.92065859,0.00010507,2]
[347204422,1735572530701,-111.53145482,0.00010507,2]
[347204463,1735572554167,-300.0,0.00010507,2]
[347204464,1735572554198,-388.46854518,0.00010507,2]
[347204465,1735572554229,-518.45124977,0.00010507,2]
[347204466,1735572554258,-491.22173405,0.00010507,2]
[347204468,1735572554285,-192.69387288,0.00010507,2]
[347204469,1735572554312,-10.78998405,0.00010508,2]
[347204470,1735572554349,-650.49741863,0.00010508,2]
[347204489,1735572579230,-1952.66784203,0.00010508,2]
[347204490,1735572579269,-449.04670057,0.00010508,2]
[347204491,1735572604238,-2000.70213288,0.00010508,2]
[347204492,1735572611158,-300.0,0.00010507,2]
[347204493,1735572611185,-191.2040558,0.00010507,2]
[347204494,1735572611213,-500.0,0.00010507,2]
[347204495,1735572611242,-117.9309709,0.00010507,2]
[347204558,1735572632092,-201.28100433,0.00010507,2]
[347204561,1735572632106,-60070.30299687,0.00010508,2]
[347204579,1735572632273,-3332.36925025,0.00010508,2]
[347204584,1735572632290,-950.473592,0.00010508,2]
[347204591,1735572632318,-36930.7163184,0.00010508,2]
[347204594,1735572632334,-42541.24754436,0.00010508,2]
[347204596,1735572632347,-1338.80026585,0.00010514,2]
[347204599,1735572632360,-24900.0,0.00010615,2]
[347204601,1735572632373,-625.26912911,0.00010936,2]
[347204603,1735572632385,-500.0,0.00010957,2]
[347204606,1735572632395,-190.92711173,0.00010957,2]
[347204608,1735572632407,-210.46103437,0.00010957,2]
[347204610,1735572632418,-500.0,0.00010958,2]
[347204612,1735572632431,-500.0,0.00010958,2]
[347204615,1735572632445,-500.0,0.00010958,2]
[347204617,1735572632459,-500.0,0.00010958,2]
[347204620,1735572632472,-183.29744434,0.00010958,2]
[347204622,1735572632486,-500.0,0.00010958,2]
[347204625,1735572632500,-500.0,0.00010958,2]
[347204627,1735572632516,-500.0,0.00010958,2]
[347204630,1735572632530,-500.0,0.00010958,2]
[347204632,1735572632541,-500.0,0.00010958,2]
[347204634,1735572632552,-500.0,0.00010958,2]
[347204636,1735572632566,-500.0,0.00010958,2]
[347204639,1735572632579,-500.0,0.00010958,2]
[347204641,1735572632594,-500.0,0.00010958,2]
[347204643,1735572632605,-500.0,0.00010958,2]
[347204646,1735572632616,-500.0,0.00010958,2]
[347204648,1735572632628,-500.0,0.00010958,2]
[347204650,1735572632640,-500.0,0.00010958,2]
[347204652,1735572632651,-239.94150064,0.00010958,2]
[347204655,1735572632662,-500.0,0.00010958,2]
[347204657,1735572632672,-519.61,0.00010958,2]
[347204659,1735572632685,-413.97156798,0.00010958,2]
[347204662,1735572632699,-500.0,0.00010958,2]
[347204664,1735572632711,-479.57711209,0.00010958,2]
[347204666,1735572632722,-342.26586419,0.00010958,2]
[347204668,1735572632734,-500.0,0.00010958,2]
[347204671,1735572632745,-500.0,0.00010958,2]
[347204673,1735572632759,-500.0,0.00010958,2]
[347204675,1735572632773,-500.0,0.00010958,2]
[347204677,1735572632785,-500.0,0.00010958,2]
[347204679,1735572632800,-500.0,0.00010958,2]
[347204681,1735572632813,-500.0,0.00010958,2]
[347204684,1735572632826,-506.03316028,0.00010958,2]
[347204686,1735572632838,-500.0,0.00010958,2]
[347204688,1735572632850,-500.0,0.00010958,2]
[347204690,1735572632862,-500.0,0.00010958,2]
[347204692,1735572632874,-500.0,0.00010958,2]
[347204695,1735572632887,-500.0,0.00010958,2]
[347204697,1735572632899,-500.0,0.00010958,2]
[347204699,1735572632911,-500.0,0.00010958,2]
[347204701,1735572632922,-500.0,0.00010958,2]
[347204703,1735572632934,-615.09054119,0.00010958,2]
[347204706,1735572632945,-500.0,0.00010958,2]
[347204708,1735572632957,-268.69080599,0.00010958,2]
[347204710,1735572632968,-500.0,0.00010958,2]
[347204712,1735572632980,-500.0,0.00010958,2]
[347204715,1735572632991,-500.0,0.00010958,2]
[347204717,1735572633008,-500.0,0.00010958,2]
[347204719,1735572633020,-500.0,0.00010958,2]
[347204721,1735572633033,-366.87345666,0.00010958,2]
[347204723,1735572633045,-500.0,0.00010958,2]
[347204726,1735572633058,-500.0,0.00010958,2]
[347204728,1735572633071,-500.0,0.00010958,2]
[347204730,1735572633083,-504.09440847,0.00010958,2]
[347204732,1735572633098,-429.87495867,0.00010958,2]
[347204734,1735572633111,-500.0,0.00010958,2]
[347204735,1735572633125,-500.0,0.00010958,2]
[347204736,1735572633138,-501.25237563,0.00010958,2]
[347204737,1735572633152,-500.0,0.00010958,2]
[347204738,1735572633165,-500.0,0.00010958,2]
[347204739,1735572633320,-500.0,0.00010958,2]
[347204740,1735572633333,-500.0,0.00010958,2]
[347204741,1735572633344,-500.0,0.00010958,2]
[347204742,1735572633354,-500.0,0.00010958,2]
[347204743,1735572633364,-500.0,0.00010958,2]
[347204744,1735572633374,-500.0,0.00010958,2]
[347204745,1735572633383,-500.0,0.00010958,2]
[347204746,1735572633393,-500.0,0.00010958,2]
[347204747,1735572633402,-503.55708668,0.00010958,2]
[347204748,1735572633413,-500.0,0.00010958,2]
[347204749,1735572633424,-500.0,0.00010958,2]
[347204751,1735572633434,-500.0,0.00010958,2]
[347204753,1735572633445,-500.0,0.00010958,2]
[347204755,1735572633455,-500.0,0.00010958,2]
[347204757,1735572633465,-500.0,0.00010958,2]
[347204759,1735572633476,-500.0,0.00010958,2]
[347204761,1735572633485,-500.0,0.00010958,2]
[347204763,1735572633495,-500.0,0.00010958,2]
[347204765,1735572633508,-500.0,0.00010958,2]
[347204767,1735572633518,-500.0,0.00010958,2]
[347204769,1735572633528,-336.0,0.00010958,2]
[347204771,1735572633538,-500.0,0.00010958,2]
[347204773,1735572633549,-500.0,0.00010958,2]
[347204775,1735572633558,-500.0,0.00010958,2]
[347204777,1735572633569,-500.0,0.00010958,2]
[347204779,1735572633579,-500.0,0.00010958,2]
[347204781,1735572633588,-500.0,0.00010958,2]
[347204783,1735572633599,-500.0,0.00010958,2]
[347204785,1735572633608,-500.0,0.00010958,2]
[347204787,1735572633618,-500.0,0.00010958,2]
[347204789,1735572633628,-500.0,0.00010958,2]
[347204791,1735572633638,-500.0,0.00010958,2]
[347204793,1735572633648,-500.0,0.00010958,2]
[347204795,1735572633657,-500.0,0.00010958,2]
[347204797,1735572633667,-500.0,0.00010958,2]
[347204799,1735572633677,-503.50870849,0.00010958,2]
[347204800,1735572633686,-444.8936842,0.00010958,2]
[347204802,1735572633696,-505.3142385,0.00010958,2]
[347204803,1735572633706,-500.0,0.00010958,2]
[347204805,1735572633715,-500.0,0.00010958,2]
[347204807,1735572633725,-500.0,0.00010958,2]
[347204809,1735572633735,-500.0,0.00010958,2]
[347204810,1735572633744,-500.0,0.00010958,2]
[347204812,1735572633756,-501.58592017,0.00010958,2]
[347204814,1735572633766,-502.42701329,0.00010958,2]
[347204816,1735572633776,-500.0,0.00010958,2]
[347204817,1735572633786,-500.0,0.00010958,2]
[347204818,1735572633797,-503.03156066,0.00010958,2]
[347204820,1735572633807,-500.0,0.00010958,2]
[347204821,1735572633817,-500.0,0.00010958,2]
[347204823,1735572633827,-500.0,0.00010958,2]
[347204825,1735572633838,-584.88018895,0.00010958,2]
[347204827,1735572633849,-500.0,0.00010958,2]
[347204828,1735572633859,-500.0,0.00010958,2]
[347204829,1735572633870,-500.0,0.00010958,2]
[347204830,1735572633880,-500.0,0.00010958,2]
[347204831,1735572633891,-985.82,0.00010958,2]
[347204832,1735572633901,-500.0,0.00010958,2]
[347204833,1735572633912,-502.18577613,0.00010958,2]
[347204835,1735572633923,-501.59756044,0.00010958,2]
[347204836,1735572633934,-504.19776558,0.00010958,2]
[347204838,1735572633944,-500.0,0.00010958,2]
[347204840,1735572633955,-500.0,0.00010958,2]
[347204842,1735572633965,-500.0,0.00010958,2]
[347204843,1735572633975,-500.0,0.00010958,2]
[347204844,1735572633985,-500.0,0.00010958,2]
[347204845,1735572633997,-500.0,0.00010958,2]
[347204847,1735572634011,-501.57398472,0.00010958,2]
[347204849,1735572634022,-6171.08,0.00010958,2]
[347204851,1735572634032,-500.0,0.00010958,2]
[347204852,1735572634045,-500.0,0.00010958,2]
[347204853,1735572634055,-500.0,0.00010958,2]
[347204854,1735572634065,-500.0,0.00010958,2]
[347204855,1735572634082,-500.0,0.00010958,2]
[347204856,1735572634093,-500.0,0.00010958,2]
[347204857,1735572634104,-500.0,0.00010958,2]
[347204858,1735572634114,-500.0,0.00010958,2]
[347204859,1735572634125,-500.0,0.00010958,2]
[347204860,1735572634135,-500.0,0.00010958,2]
[347204861,1735572634146,-500.0,0.00010958,2]
[347204862,1735572634157,-500.0,0.00010958,2]
[347204863,1735572634167,-500.0,0.00010958,2]
[347204864,1735572634179,-500.0,0.00010958,2]
[347204865,1735572634190,-500.0,0.00010958,2]
[347204866,1735572634201,-500.0,0.00010958,2]
[347204867,1735572634212,-500.0,0.00010958,2]
[347204868,1735572634223,-500.0,0.00010958,2]
[347204869,1735572634234,-500.60304527,0.00010958,2]
[347204870,1735572634244,-500.0,0.00010958,2]
[347204871,1735572634254,-500.0,0.00010958,2]
[347204872,1735572634265,-500.0,0.00010958,2]
[347204873,1735572634275,-500.0,0.00010958,2]
[347204874,1735572634285,-500.0,0.00010958,2]
[347204875,1735572634295,-500.0,0.00010958,2]
[347204876,1735572634305,-500.0,0.00010958,2]
[347204877,1735572634316,-500.0,0.00010958,2]
[347204878,1735572634326,-500.0,0.00010958,2]
[347204879,1735572634335,-500.0,0.00010958,2]
[347204880,1735572634345,-500.0,0.00010958,2]
[347204881,1735572634355,-500.0,0.00010958,2]
[347204882,1735572634365,-500.0,0.00010958,2]
[347204883,1735572634374,-500.0,0.00010958,2]
[347204884,1735572634384,-500.0,0.00010958,2]
[347204885,1735572634394,-500.0,0.00010958,2]
[347204886,1735572634404,-500.0,0.00010958,2]
[347204887,1735572634414,-500.0,0.00010958,2]
[347204888,1735572634425,-500.0,0.00010958,2]
[347204889,1735572634435,-500.0,0.00010958,2]
[347204890,1735572634445,-500.0,0.00010958,2]
[347204891,1735572634455,-500.0,0.00010958,2]
[347204892,1735572634466,-500.0,0.00010958,2]
[347204893,1735572634475,-500.0,0.00010958,2]
[347204894,1735572634485,-500.0,0.00010958,2]
[347204895,1735572634495,-500.0,0.00010958,2]
[347204896,1735572634506,-500.0,0.00010958,2]
[347204897,1735572634516,-500.0,0.00010958,2]
[347204898,1735572634525,-500.0,0.00010958,2]
[347204899,1735572634535,-500.0,0.00010958,2]
[347204900,1735572634545,-500.0,0.00010958,2]
[347204901,1735572634555,-500.0,0.00010958,2]
[347204902,1735572634565,-500.0,0.00010958,2]
[347204903,1735572634575,-500.0,0.00010958,2]
[347204904,1735572634585,-500.0,0.00010958,2]
[347204905,1735572634594,-502.9942638,0.00010958,2]
[347204906,1735572634603,-848.59,0.00010958,2]
[347204907,1735572634613,-500.0,0.00010958,2]
[347204908,1735572634623,-500.0,0.00010958,2]
[347204909,1735572634632,-500.0,0.00010958,2]
[347204910,1735572634641,-500.0,0.00010958,2]
[347204911,1735572634652,-500.0,0.00010958,2]
[347204912,1735572634662,-500.0,0.00010958,2]
[347204913,1735572634672,-500.0,0.00010958,2]
[347204914,1735572634681,-500.0,0.00010958,2]
[347204915,1735572634690,-500.0,0.00010958,2]
[347204916,1735572634700,-500.0,0.00010958,2]
[347204917,1735572634709,-500.0,0.00010958,2]
[347204918,1735572634719,-500.0,0.00010958,2]
[347204919,1735572634729,-500.0,0.00010958,2]
[347204920,1735572634738,-405.05910757,0.00010958,2]
[347204921,1735572634748,-500.0,0.00010958,2]
[347204922,1735572634759,-500.0,0.00010958,2]
[347204923,1735572634769,-500.0,0.00010958,2]
[347204924,1735572634779,-500.0,0.00010958,2]
[347204925,1735572634789,-500.0,0.00010958,2]
[347204926,1735572634799,-500.0,0.00010958,2]
[347204927,1735572634809,-428.81983984,0.00010958,2]
[347204928,1735572634819,-500.0,0.00010958,2]
[347204929,1735572634828,-500.0,0.00010958,2]
[347204930,1735572634837,-500.0,0.00010958,2]
[347204931,1735572634847,-500.0,0.00010958,2]
[347204932,1735572634857,-500.0,0.00010958,2]
[347204933,1735572634867,-500.0,0.00010958,2]
[347204934,1735572634877,-500.0,0.00010958,2]
[347204935,1735572634887,-500.0,0.00010958,2]
[347204936,1735572634897,-500.0,0.00010958,2]
[347204937,1735572634907,-500.27473426,0.00010958,2]
[347204938,1735572634917,-500.0,0.00010958,2]
[347204939,1735572634926,-468.10559031,0.00010958,2]
[347204940,1735572634937,-230.69038103,0.00010958,2]
[347204941,1735572634946,-500.0,0.00010958,2]
[347204942,1735572634956,-500.0,0.00010958,2]
[347204943,1735572634966,-500.0,0.00010958,2]
[347204944,1735572634976,-500.0,0.00010958,2]
[347204945,1735572634986,-500.0,0.00010958,2]
[347204946,1735572634995,-553.02,0.00010958,2]
[347204947,1735572635007,-500.0,0.00010958,2]
[347204948,1735572635019,-500.0,0.00010958,2]
[347204949,1735572635029,-630.74,0.00010958,2]
[347204950,1735572635039,-500.0,0.00010958,2]
[347204951,1735572635049,-500.0,0.00010958,2]
[347204952,1735572635061,-500.0,0.00010958,2]
[347204953,1735572635071,-500.0,0.00010958,2]
[347204954,1735572635080,-500.0,0.00010958,2]
[347204955,1735572635090,-502.98273978,0.00010958,2]
[347204956,1735572635102,-500.0,0.00010958,2]
[347204957,1735572635111,-500.0,0.00010958,2]
[347204958,1735572635120,-238.03530403,0.00010958,2]
[347204959,1735572635131,-500.0,0.00010958,2]
[347204960,1735572635141,-500.0,0.00010958,2]
[347204961,1735572635151,-500.0,0.00010958,2]
[347204962,1735572635161,-500.0,0.00010958,2]
[347204963,1735572635177,-500.0,0.00010958,2]
[347204964,1735572635191,-1000.0,0.00011,2]
[347204965,1735572635201,-196.24264449,0.00011194,2]
[347204966,1735572635211,-500.0,0.00011232,2]
[347204967,1735572635221,-500.0,0.00011232,2]
[347204968,1735572635231,-502.60183308,0.00011232,2]
[347204969,1735572635242,-500.0,0.00011232,2]
[347204970,1735572635254,-534.53,0.00011232,2]
[347204971,1735572635264,-504.55981547,0.00011232,2]
[347204972,1735572635273,-500.0,0.00011232,2]
[347204973,1735572635283,-500.0,0.00011232,2]
[347204974,1735572635292,-500.0,0.00011232,2]
[347204975,1735572635302,-500.0,0.00011232,2]
[347204976,1735572635312,-500.0,0.00011232,2]
[347204977,1735572635322,-500.0,0.00011232,2]
[347204978,1735572635332,-500.0,0.00011232,2]
[347204979,1735572635342,-500.0,0.00011232,2]
[347204980,1735572635352,-500.0,0.00011232,2]
[347204981,1735572635362,-500.0,0.00011232,2]
[347204982,1735572635373,-500.0,0.00011232,2]
[347204983,1735572635384,-500.0,0.00011232,2]
[347204984,1735572635395,-500.0,0.00011232,2]
[347204985,1735572635406,-500.0,0.00011232,2]
[347204986,1735572635415,-500.0,0.00011232,2]
[347204987,1735572635425,-500.0,0.00011232,2]
[347204988,1735572635548,-500.0,0.00011232,2]
[347204989,1735572635559,-647.98,0.00011232,2]
[347204990,1735572635568,-500.0,0.00011232,2]
[347204991,1735572635578,-500.0,0.00011232,2]
[347204992,1735572635588,-500.0,0.00011232,2]
[347204993,1735572635597,-500.0,0.00011232,2]
[347204994,1735572635607,-500.0,0.00011232,2]
[347204995,1735572635617,-500.0,0.00011232,2]
[347204996,1735572635627,-500.0,0.00011232,2]
[347204997,1735572635637,-500.0,0.00011232,2]
[347204998,1735572635647,-500.0,0.00011232,2]
[347204999,1735572635656,-500.0,0.00011232,2]
[347205000,1735572635666,-500.0,0.00011232,2]
[347205001,1735572635676,-530.64238329,0.00011232,2]
[347205002,1735572635685,-500.0,0.00011232,2]
[347205003,1735572635695,-500.0,0.00011232,2]
[347205004,1735572635704,-604.96198067,0.00011232,2]
[347205005,1735572635714,-500.0,0.00011232,2]
[347205006,1735572635724,-500.0,0.00011232,2]
[347205007,1735572635733,-500.0,0.00011232,2]
[347205008,1735572635743,-500.0,0.00011232,2]
[347205009,1735572635753,-564.66880477,0.00011232,2]
[347205010,1735572635764,-500.0,0.00011232,2]
[347205011,1735572635774,-500.0,0.00011232,2]
[347205012,1735572635783,-500.0,0.00011232,2]
[347205013,1735572635793,-500.0,0.00011232,2]
[347205014,1735572635803,-500.0,0.00011232,2]
[347205015,1735572635813,-500.0,0.00011232,2]
[347205016,1735572635823,-500.0,0.00011232,2]
[347205017,1735572635833,-500.0,0.00011232,2]
[347205018,1735572635843,-500.0,0.00011232,2]
[347205019,1735572635853,-500.0,0.00011232,2]
[347205020,1735572635863,-500.0,0.00011232,2]
[347205021,1735572635873,-462.6838863,0.00011232,2]
[347205022,1735572635883,-500.0,0.00011232,2]
[347205023,1735572635893,-500.0,0.00011232,2]
[347205024,1735572635903,-504.75108553,0.00011232,2]
[347205025,1735572635913,-504.2968186,0.00011232,2]
[347205026,1735572635923,-500.0,0.00011232,2]
[347205027,1735572635933,-510.92496706,0.00011232,2]
[347205028,1735572635943,-500.0,0.00011232,2]
[347205029,1735572635952,-215.11515765,0.00011232,2]
[347205030,1735572635962,-505.14597039,0.00011232,2]
[347205031,1735572635972,-500.0,0.00011232,2]
[347205032,1735572635982,-500.0,0.00011232,2]
[347205033,1735572635991,-500.0,0.00011232,2]
[347205034,1735572636001,-500.0,0.00011232,2]
[347205035,1735572636013,-500.0,0.00011232,2]
[347205036,1735572636026,-500.0,0.00011232,2]
[347205037,1735572636035,-500.0,0.00011232,2]
[347205038,1735572636045,-500.0,0.00011232,2]
[347205039,1735572636055,-500.0,0.00011232,2]
[347205040,1735572636065,-500.0,0.00011232,2]
[347205041,1735572636075,-500.0,0.00011232,2]
[347205042,1735572636084,-500.0,0.00011232,2]
[347205043,1735572636094,-500.0,0.00011232,2]
[347205044,1735572636103,-242.23398464,0.00011232,2]
[347205045,1735572636113,-500.0,0.00011232,2]
[347205046,1735572636123,-6171.08,0.00011232,2]
[347205047,1735572636132,-500.0,0.00011232,2]
[347205048,1735572636142,-500.0,0.00011232,2]
[347205049,1735572636151,-505.6889392,0.00011232,2]
[347205050,1735572636162,-500.0,0.00011232,2]
[347205051,1735572636172,-500.0,0.00011232,2]
[347205052,1735572636182,-500.0,0.00011232,2]
[347205053,1735572636192,-629.3871575,0.00011232,2]
[347205054,1735572636201,-500.0,0.00011232,2]
[347205055,1735572636211,-500.0,0.00011232,2]
[347205056,1735572636220,-500.0,0.00011232,2]
[347205057,1735572636230,-500.0,0.00011232,2]
[347205058,1735572636239,-500.0,0.00011232,2]
[347205059,1735572636248,-500.0,0.00011232,2]
[347205060,1735572636260,-500.0,0.00011232,2]
[347205061,1735572636269,-561.5,0.00011232,2]
[347205062,1735572636279,-500.0,0.00011232,2]
[347205063,1735572636288,-500.0,0.00011232,2]
[347205064,1735572636298,-500.0,0.00011232,2]
[347205065,1735572636308,-500.0,0.00011232,2]
[347205066,1735572636317,-500.0,0.00011232,2]
[347205067,1735572636327,-500.0,0.00011232,2]
[347205068,1735572636336,-500.0,0.00011232,2]
[347205069,1735572636346,-500.0,0.00011232,2]
[347205070,1735572636355,-500.0,0.00011232,2]
[347205071,1735572636365,-500.0,0.00011232,2]
[347205072,1735572636374,-500.0,0.00011232,2]
[347205073,1735572636383,-500.0,0.00011232,2]
[347205074,1735572636393,-500.0,0.00011232,2]
[347205075,1735572636402,-500.0,0.00011232,2]
[347205076,1735572636412,-500.0,0.00011232,2]
[347205077,1735572636421,-500.0,0.00011232,2]
[347205078,1735572636430,-500.0,0.00011232,2]
[347205079,1735572636440,-500.0,0.00011232,2]
[347205080,1735572636449,-848.59,0.00011232,2]
[347205081,1735572636459,-500.0,0.00011232,2]
[347205082,1735572636468,-500.0,0.00011232,2]
[347205083,1735572636477,-500.0,0.00011232,2]
[347205084,1735572636487,-500.0,0.00011232,2]
[347205085,1735572636497,-500.0,0.00011232,2]
[347205086,1735572636508,-500.0,0.00011232,2]
[347205087,1735572636518,-500.0,0.00011232,2]
[347205088,1735572636527,-191.81297388,0.00011232,2]
[347205104,1735572637918,-500.0,0.00010958,2]
[347205105,1735572637927,-500.0,0.00010958,2]
[347205106,1735572637936,-500.0,0.00010958,2]
[347205107,1735572637946,-308.18702612,0.00011232,2]
[347205108,1735572637956,-500.0,0.00011232,2]
[347205109,1735572637965,-500.0,0.00011232,2]
[347205110,1735572637975,-500.0,0.00011232,2]
[347205111,1735572637984,-500.0,0.00011232,2]
[347205112,1735572637994,-500.0,0.00011232,2]
[347205113,1735572638003,-500.0,0.00011232,2]
[347205114,1735572638014,-500.0,0.00011232,2]
[347205115,1735572638025,-500.0,0.00011232,2]
[347205116,1735572638035,-500.0,0.00011232,2]
[347205117,1735572638048,-500.0,0.00011232,2]
[347205118,1735572638058,-500.0,0.00011232,2]
[347205119,1735572638067,-500.0,0.00011232,2]
[347205120,1735572638077,-500.0,0.00011232,2]
[347205121,1735572638171,-502.31671248,0.00011232,2]
[347205122,1735572638181,-500.0,0.00011232,2]
[347205123,1735572638191,-500.0,0.00011232,2]
[347205124,1735572638201,-500.0,0.00011232,2]
[347205125,1735572638210,-553.02,0.00011232,2]
[347205126,1735572638220,-500.0,0.00011232,2]
[347205127,1735572638229,-500.0,0.00011232,2]
[347205128,1735572638239,-630.74,0.00011232,2]
[347205129,1735572638248,-500.0,0.00011232,2]
[347205130,1735572638261,-500.0,0.00011232,2]
[347205131,1735572638271,-500.0,0.00011232,2]
[347205132,1735572638280,-500.0,0.00011232,2]
[347205133,1735572638290,-500.0,0.00011232,2]